fUST/lending_fUST_20250512
["ID","MTS","AMOUNT","RATE_DAILY","PERIOD"]
[360780474,1747012239541,-3000.0,0.0002106,2]
[360780475,1747012239551,-7.26122235,0.0002107,2]
[360780532,1747012243438,-400.0,0.00019178,2]
[360780534,1747012243447,-400.0,0.00019328,2]
[360780535,1747012243456,-500.0,0.00019328,2]
[360780537,1747012243466,-400.0,0.00019328,2]
[360780539,1747012243474,-400.0,0.00019452,2]
[360780540,1747012243483,-400.0,0.00019602,2]
[360780541,1747012243495,-400.0,0.00019602,2]
[360780542,1747012243504,-400.0,0.00019719,2]
[360780544,1747012243514,-210.18150039,0.00019726,2]
[360780545,1747012243523,-400.0,0.00019772,2]
[360780546,1747012243533,-400.0,0.00019772,2]
[360780547,1747012243542,-400.0,0.00019876,2]
[360780549,1747012243552,-400.0,0.00019876,2]
[360780551,1747012243562,-400.0,0.00019993,2]
[360780553,1747012243571,-400.0,0.00020046,2]
[360780554,1747012243581,-400.0,0.00020046,2]
[360780555,1747012243591,-400.0,0.0002015,2]
[360780556,1747012243601,-400.0,0.0002015,2]
[360780557,1747012243611,-400.0,0.00020267,2]
[360780558,1747012243620,-400.0,0.0002032,2]
[360780559,1747012243629,-240.78298961,0.0002032,2]
[360780561,1747012243641,-159.21701039,0.0002032,2]
[360780563,1747012243651,-433.16,0.00020424,2]
[360780564,1747012243661,-400.0,0.00020424,2]
[360780565,1747012243670,-400.0,0.00020424,2]
[360780567,1747012243680,-400.0,0.00020541,2]
[360780568,1747012243690,-147.03438958,0.00020594,2]
[360780569,1747012243702,-252.96561042,0.00020594,2]
[360780571,1747012243711,-400.0,0.00020594,2]
[360780573,1747012243721,-413.76,0.00020698,2]
[360780574,1747012243730,-400.0,0.00020815,2]
[360780575,1747012243741,-500.61071628,0.00020868,2]
[360780576,1747012243751,-400.0,0.00020868,2]
[360780577,1747012243760,-2992.73877765,0.0002107,2]
[360780578,1747012243770,-173.26548826,0.0002108,2]
[360780579,1747012243781,-2826.73451174,0.0002108,2]
[360780580,1747012243791,-337.4,0.00021089,2]
[360780581,1747012243800,-3000.0,0.0002109,2]
[360780582,1747012243810,-3000.0,0.000211,2]
[360780583,1747012243819,-3000.0,0.0002111,2]
[360780584,1747012243831,-3000.0,0.0002112,2]
[360780585,1747012243840,-3000.0,0.0002113,2]
[360780586,1747012243850,-3000.0,0.0002114,2]
[360780587,1747012243859,-213.24081762,0.00021141,4]
[360780588,1747012243869,-3000.0,0.0002115,2]
[360780589,1747012243878,-3000.0,0.0002116,2]
[360780590,1747012243887,-3000.0,0.0002117,2]
[360780591,1747012243897,-3000.0,0.0002118,2]
[360780592,1747012243908,-3000.0,0.0002119,2]
[360780593,1747012243917,-3000.0,0.000212,2]
[360780594,1747012243927,-3000.0,0.0002121,2]
[360780595,1747012243936,-3000.0,0.0002122,2]
[360780596,1747012243945,-3000.0,0.0002123,2]
[360780597,1747012243955,-3000.0,0.0002124,2]
[360780598,1747012243964,-1476.34,0.00021246,2]
[360780599,1747012243974,-3000.0,0.0002125,2]
[360780600,1747012243983,-3000.0,0.0002126,2]
[360780601,1747012243995,-2587.26434264,0.0002127,2]
[360780609,1747012246459,-400.0,0.00019328,2]
[360780610,1747012246469,-400.0,0.00019602,2]
[360780611,1747012246479,-400.0,0.00019876,2]
[360780612,1747012246490,-400.0,0.0002015,2]
[360780613,1747012246500,-412.73565736,0.0002127,2]
[360780614,1747012246510,-3000.0,0.0002128,2]
[360780615,1747012246520,-3000.0,0.0002129,2]
[360780616,1747012246530,-3000.0,0.000213,2]
[360780617,1747012246540,-3000.0,0.0002131,2]
[360780618,1747012246549,-3000.0,0.0002132,2]
[360780619,1747012246559,-3000.0,0.0002133,2]
[360780620,1747012246568,-3000.0,0.0002134,2]
[360780621,1747012246578,-3000.0,0.0002135,2]
[360780622,1747012246587,-3000.0,0.0002136,2]
[360780623,1747012246596,-3000.0,0.0002137,2]
[360780624,1747012246605,-3000.0,0.0002138,2]
[360780625,1747012246615,-3000.0,0.0002139,2]
[360780626,1747012246624,-3000.0,0.000214,2]
[360780627,1747012246633,-3000.0,0.0002141,2]
[360780628,1747012246642,-3000.0,0.0002142,2]
[360780629,1747012246654,-4970.438655,0.0002143,2]
[360780630,1747012246663,-1476.34,0.0002152,2]
[360780631,1747012246673,-213.24081762,0.00021555,5]
[360780632,1747012246682,-1476.34,0.00021794,2]
[360780633,1747012246692,-160.0,0.00021917,2]
[360780634,1747012246701,-151.0,0.00021918,2]
[360780635,1747012246710,-151.0,0.00021918,2]
[360780636,1747012246719,-151.0,0.00021918,2]
[360780637,1747012246728,-151.0,0.00021918,2]
[360780638,1747012246738,-151.0,0.00021918,2]
[360780639,1747012246748,-151.0,0.00021918,2]
[360780640,1747012246757,-151.0,0.00021918,2]
[360780641,1747012246766,-151.0,0.00021918,2]
[360780642,1747012246775,-151.0,0.00021918,2]
[360780643,1747012246784,-151.0,0.00021918,2]
[360780644,1747012246794,-151.0,0.00021918,2]
[360780645,1747012246803,-151.0,0.00021918,2]
[360780646,1747012246812,-151.0,0.00021918,2]
[360780647,1747012246821,-151.0,0.00021918,2]
[360780648,1747012246831,-151.0,0.00021918,2]
[360780649,1747012246840,-151.0,0.00021918,2]
[360780650,1747012246849,-209.486,0.00021918,2]
[360780651,1747012246858,-233.0,0.00021918,3]
[360780652,1747012246868,-150.0,0.00021918,2]
[360780653,1747012246878,-213.24081762,0.00021969,6]
[360780654,1747012246887,-422.1676983,0.00022034,2]
[360780655,1747012246897,-160.0,0.00022034,2]
[360780656,1747012246906,-997.71092301,0.00022034,2]
[360780657,1747012246915,-160.0,0.00022034,2]
[360780658,1747012246924,-212.1539542,0.00022034,2]
[360780659,1747012246933,-160.0,0.00022034,2]
[360780660,1747012246942,-160.0,0.00022034,2]
[360780661,1747012246952,-1476.34,0.00022068,2]
[360780662,1747012246961,-1476.34,0.00022342,2]
[360780663,1747012246970,-213.24081762,0.00022383,7]
[360780664,1747012246980,-1476.34,0.00022616,2]
[360780665,1747012246991,-213.24081762,0.00022797,7]
[360780666,1747012247001,-1476.34,0.0002289,2]
[360780667,1747012247011,-1476.34,0.00023164,2]
[360780668,1747012247021,-213.24081762,0.0002321,8]
[360780669,1747012247031,-160.0,0.00023287,2]
[360780670,1747012247041,-1476.34,0.00023438,2]
[360780671,1747012247050,-213.24081762,0.00023624,9]
[360780672,1747012247060,-1476.34,0.00023712,2]
[360780673,1747012247069,-161.957792,0.00023744,2]
[360780674,1747012247079,-1476.34,0.00023986,2]
[360780675,1747012247089,-213.24081762,0.00024038,10]
[360780676,1747012247102,-1476.34,0.0002426,2]
[360780677,1747012247111,-213.24081762,0.00024452,11]
[360780678,1747012247121,-1476.34,0.00024534,2]
[360780679,1747012247130,-160.0,0.00024657,2]
[360780680,1747012247140,-300.0,0.00024658,2]
[360780681,1747012247149,-200.0,0.00024658,15]
[360780682,1747012247159,-41787.69328964,0.000248,3]
[360780683,1747012247169,-14953.65784869,0.000248,2]
[360780711,1747012827535,-500.0,0.00017982,2]
[360780712,1747012827556,-198.0,0.00018082,3]
[360780713,1747012827578,-300.0,0.00019177,2]
[360780714,1747012827600,-300.0,0.00019177,2]
[360780715,1747012827623,-1200.0,0.00019177,2]
[360780716,1747012827645,-400.0,0.00019178,2]
[360780717,1747012827666,-400.0,0.00019178,2]
[360780718,1747012827687,-519.89410569,0.00019178,2]
[360780719,1747012827708,-400.0,0.00019178,2]
[360780720,1747012827731,-400.0,0.00019178,2]
[360780721,1747012827753,-400.0,0.00019178,2]
[360780722,1747012827774,-400.0,0.00019178,2]
[360780723,1747012827795,-400.0,0.00019178,2]
[360780724,1747012827815,-400.0,0.00019178,2]
[360780725,1747012827835,-400.0,0.00019178,2]
[360780726,1747012827856,-400.0,0.00019178,2]
[360780727,1747012827876,-400.0,0.00019178,2]
[360780728,1747012827897,-400.0,0.00019178,2]
[360780729,1747012827917,-400.0,0.00019178,2]
[360780730,1747012827938,-400.0,0.00019178,2]
[360780731,1747012827960,-400.0,0.00019178,2]
[360780732,1747012827983,-507.32092926,0.00019178,2]
[360780733,1747012828003,-400.0,0.00019178,2]
[360780734,1747012828024,-400.0,0.00019178,2]
[360780735,1747012828044,-400.0,0.00019178,2]
[360780736,1747012828065,-400.0,0.00019178,2]
[360780737,1747012828085,-400.0,0.00019178,2]
[360780738,1747012828106,-400.0,0.00019178,2]
[360780739,1747012828128,-400.0,0.00019178,2]
[360780740,1747012828149,-400.0,0.00019178,2]
[360780741,1747012828171,-400.0,0.00019178,2]
[360780742,1747012828191,-400.0,0.00019178,2]
[360780743,1747012828214,-400.0,0.00019178,2]
[360780744,1747012828237,-464.84854962,0.00019178,2]
[360780745,1747012828258,-400.0,0.00019178,2]
[360780746,1747012828280,-500.0,0.00019178,2]
[360780747,1747012828301,-500.0,0.00019178,2]
[360780748,1747012828323,-400.0,0.00019178,2]
[360780749,1747012828344,-400.0,0.00019178,2]
[360780750,1747012828369,-251.743571,0.00019178,2]
[360780751,1747012828390,-50000.0,0.00019178,2]
[360780752,1747012828412,-1000.0,0.00019228,2]
[360780753,1747012828433,-540.5997396,0.00019228,2]
[360780754,1747012828459,-411.0830664,0.00019326,2]
[360780755,1747012828481,-487.74686947,0.00019326,2]
[360780756,1747012828502,-400.0,0.00019327,2]
[360780757,1747012828524,-400.0,0.00019327,2]
[360780758,1747012828546,-400.0,0.00019327,2]
[360780759,1747012828566,-549.79066763,0.00019327,2]
[360780760,1747012828586,-400.0,0.00019327,2]
[360780761,1747012828607,-400.0,0.00019327,2]
[360780762,1747012828628,-332.70564762,0.00019327,2]
[360780763,1747012828649,-400.0,0.00019327,2]
[360780764,1747012828671,-519.83348881,0.00019327,2]
[360780765,1747012828692,-400.0,0.00019327,2]
[360780766,1747012828712,-400.0,0.00019327,2]
[360780767,1747012828734,-400.0,0.00019327,2]
[360780768,1747012828755,-501.07317311,0.00019327,2]
[360780769,1747012828776,-400.0,0.00019327,2]
[360780770,1747012828797,-400.0,0.00019327,2]
[360780771,1747012828817,-400.0,0.00019327,2]
[360780772,1747012828837,-123.36019179,0.00019327,2]
[360780784,1747013322640,-360.742326,0.00013699,2]
[360780785,1747013322661,-5544.257674,0.00014182,2]
[360780796,1747013345374,-159.8,0.00010651,2]
[360780797,1747013345395,-110.83614373,0.00014182,2]
[360780804,1747013363087,-19.32223575,0.00014182,2]
[360780846,1747013432657,-300.0,0.00018162,2]
[360780848,1747013432677,-1151.3655182,0.00018163,2]
[360780859,1747013432751,-11442.7761626,0.00018163,2]
[360780862,1747013432764,-1733.4375611,0.0001837,2]
[360780864,1747013432776,-1167.13216444,0.000189,2]
[360780866,1747013432790,-8750.71154331,0.00019,2]
[360780868,1747013432802,-400.0,0.00019178,2]
[360780871,1747013432815,-501.49252279,0.00019324,2]
[360780873,1747013432828,-400.0,0.00019324,2]
[360780875,1747013432841,-156.46405954,0.00019324,2]
[360780878,1747013432854,-400.0,0.00019324,2]
[360780880,1747013432868,-400.0,0.00019324,2]
[360780882,1747013432881,-400.0,0.00019324,2]
[360780884,1747013432892,-400.0,0.00019324,2]
[360780887,1747013432905,-400.0,0.00019324,2]
[360780889,1747013432916,-418.12450802,0.00019324,2]
[360780891,1747013432929,-400.0,0.00019324,2]
[360780894,1747013432944,-400.0,0.00019325,2]
[360780896,1747013432956,-400.0,0.00019325,2]
[360780898,1747013432969,-400.0,0.00019325,2]
[360780901,1747013432979,-400.0,0.00019325,2]
[360780903,1747013432991,-400.0,0.00019325,2]
[360780905,1747013433002,-530.94,0.00019325,2]
[360780907,1747013433014,-472.7279095,0.00019325,2]
[360780910,1747013433027,-400.0,0.00019325,2]
[360780912,1747013433039,-400.0,0.00019325,2]
[360780914,1747013433052,-500.0,0.00019325,2]
[360780917,1747013433066,-442.04113629,0.00019325,2]
[360780919,1747013433079,-400.0,0.00019325,2]
[360780922,1747013433093,-896.9,0.00019325,2]
[360780924,1747013433105,-449.85341816,0.00019325,2]
[360780926,1747013433116,-400.0,0.00019325,2]
[360780928,1747013433126,-400.0,0.00019325,2]
[360780930,1747013433138,-400.0,0.00019325,2]
[360780933,1747013433151,-400.0,0.00019325,2]
[360780935,1747013433165,-891.03,0.00019325,2]
[360780938,1747013433179,-2861.28335849,0.00019326,2]
[360780940,1747013433190,-12327.63418589,0.00019326,3]
[360780942,1747013433203,-400.0,0.00019326,2]
[360780944,1747013433214,-400.0,0.00019326,2]
[360780947,1747013433228,-500.0,0.00019326,2]
[360780949,1747013433240,-400.0,0.00019326,2]
[360780951,1747013433251,-400.0,0.00019326,2]
[360780953,1747013433263,-400.0,0.00019326,2]
[360780955,1747013433274,-400.0,0.00019326,2]
[360780957,1747013433286,-400.0,0.00019326,2]
[360780960,1747013433299,-400.0,0.00019326,2]
[360780962,1747013433311,-400.0,0.00019326,2]
[360780964,1747013433323,-400.0,0.00019326,2]
[360780967,1747013433335,-400.0,0.00019326,2]
[360780969,1747013433347,-400.0,0.00019326,2]
[360780971,1747013433358,-400.0,0.00019326,2]
[360780973,1747013433370,-500.0,0.00019326,2]
[360780976,1747013433382,-608.16,0.00019326,2]
[360780978,1747013433393,-400.0,0.00019326,2]
[360780980,1747013433405,-400.0,0.00019326,2]
[360780982,1747013433417,-400.0,0.00019326,2]
[360780985,1747013433428,-400.0,0.00019326,2]
[360780987,1747013433439,-400.0,0.00019326,2]
[360780989,1747013433455,-400.0,0.00019326,2]
[360780991,1747013433470,-400.0,0.00019326,2]
[360780993,1747013433482,-400.0,0.00019326,2]
[360780996,1747013433494,-400.0,0.00019326,2]
[360780998,1747013433505,-400.0,0.00019326,2]
[360781000,1747013433517,-400.0,0.00019326,2]
[360781002,1747013433529,-400.0,0.00019326,2]
[360781004,1747013433541,-400.0,0.00019326,2]
[360781007,1747013433552,-400.0,0.00019326,2]
[360781009,1747013433563,-400.0,0.00019326,2]
[360781011,1747013433576,-500.0,0.00019326,2]
[360781013,1747013433596,-500.0,0.00019326,2]
[360781015,1747013433607,-400.0,0.00019326,2]
[360781017,1747013433619,-514.60139206,0.00019326,2]
[360781020,1747013433631,-500.0,0.00019326,2]
[360781022,1747013433643,-500.0,0.00019326,2]
[360781024,1747013433654,-400.0,0.00019326,2]
[360781026,1747013433666,-400.0,0.00019326,2]
[360781028,1747013433677,-400.0,0.00019326,2]
[360781030,1747013433689,-400.0,0.00019326,2]
[360781032,1747013433700,-400.0,0.00019326,2]
[360781035,1747013433711,-152.9764556,0.00019326,2]
[360781037,1747013433723,-400.0,0.00019326,2]
[360781039,1747013433733,-400.0,0.00019326,2]
[360781041,1747013433745,-400.0,0.00019326,2]
[360781043,1747013433757,-400.0,0.00019326,2]
[360781046,1747013433769,-400.0,0.00019326,2]
[360781048,1747013433780,-538.56,0.00019326,2]
[360781050,1747013433792,-400.0,0.00019326,2]
[360781051,1747013433803,-400.0,0.00019326,2]
[360781052,1747013433814,-400.0,0.00019326,2]
[360781053,1747013433826,-400.0,0.00019326,2]
[360781054,1747013433837,-400.0,0.00019326,2]
[360781055,1747013433849,-400.0,0.00019326,2]
[360781056,1747013433860,-400.0,0.00019326,2]
[360781057,1747013433871,-400.0,0.00019326,2]
[360781058,1747013433882,-1403.54,0.00019326,2]
[360781059,1747013433893,-283.56965722,0.00019326,2]
[360781060,1747013433909,-116.43034278,0.00019326,2]
[360781061,1747013433920,-532.14866434,0.00019326,2]
[360781062,1747013433932,-400.0,0.00019326,2]
[360781063,1747013433943,-400.0,0.00019326,2]
[360781064,1747013433955,-400.0,0.00019326,2]
[360781065,1747013433968,-400.0,0.00019326,2]
[360781066,1747013433980,-400.0,0.00019326,2]
[360781067,1747013433991,-400.0,0.00019326,2]
[360781068,1747013434003,-400.0,0.00019326,2]
[360781069,1747013434014,-400.0,0.00019326,2]
[360781070,1747013434025,-400.0,0.00019326,2]
[360781071,1747013434036,-854.39,0.00019326,2]
[360781072,1747013434048,-400.0,0.00019326,2]
[360781073,1747013434059,-400.0,0.00019326,2]
[360781074,1747013434070,-400.0,0.00019326,2]
[360781075,1747013434081,-400.0,0.00019326,2]
[360781076,1747013434093,-400.0,0.00019326,2]
[360781077,1747013434103,-400.0,0.00019326,2]
[360781078,1747013434113,-400.0,0.00019326,2]
[360781079,1747013434123,-400.0,0.00019326,2]
[360781080,1747013434133,-347.41896602,0.00019326,2]
[360781081,1747013434344,-400.0,0.00019326,2]
[360781082,1747013434361,-500.0,0.00019326,2]
[360781083,1747013434372,-400.0,0.00019326,2]
[360781084,1747013434382,-400.0,0.00019326,2]
[360781085,1747013434393,-400.0,0.00019326,2]
[360781086,1747013434402,-400.0,0.00019326,2]
[360781087,1747013434411,-400.0,0.00019326,2]
[360781088,1747013434421,-400.0,0.00019326,2]
[360781089,1747013434431,-400.0,0.00019326,2]
[360781090,1747013434441,-400.0,0.00019326,2]
[360781091,1747013434450,-400.0,0.00019326,2]
[360781092,1747013434460,-156525.48732247,0.00019326,2]
[360781120,1747013440841,-503.66294754,0.00019178,2]
[360781121,1747013440851,-500.0,0.00019323,2]
[360781122,1747013440860,-345.49106947,0.00019323,2]
[360781123,1747013440869,-375.54983969,0.00019323,2]
[360781124,1747013440878,-400.0,0.00019325,2]
[360781125,1747013440887,-64847.37208964,0.00019326,2]
[360781155,1747013443631,-400.0,0.00019178,2]
[360781156,1747013443641,-105113.45076614,0.00019326,2]
[360781171,1747013447197,-400.0,0.00019325,2]
[360781172,1747013447207,-56868.99020199,0.00019326,2]
[360781173,1747013447245,-0.3265608,0.00019326,2]
[360781174,1747013456055,638.0,0.00022,120]
[360781201,1747013927458,961.0,0.00022,120]
[360781262,1747014545116,-327.79152502,0.00013699,2]
[360781265,1747014551109,-14.91368398,0.00013699,2]
[360781266,1747014551129,-198.40788036,0.00018082,3]
[360781267,1747014551151,-30.32059413,0.00018147,2]
[360781268,1747014558093,-203.31072241,0.00018147,2]
[360781328,1747014633348,-996.31522636,0.00018147,2]
[360781330,1747014633358,-155.0,0.00019,2]
[360781332,1747014633367,-300.0,0.00019172,2]
[360781335,1747014633379,-181.0,0.00019172,2]
[360781337,1747014633388,-242.0,0.00019172,2]
[360781338,1747014633397,-499.0,0.00019172,2]
[360781340,1747014633407,-169.81,0.00019177,2]
[360781343,1747014633418,-300.0,0.00019177,2]
[360781345,1747014633427,-612.88488778,0.00019177,2]
[360781347,1747014633437,-241.84374863,0.00019177,2]
[360781349,1747014633446,-508.88095846,0.00019178,2]
[360781351,1747014633457,-504.95529508,0.00019178,2]
[360781353,1747014633467,-156.02407391,0.00019178,2]
[360781355,1747014633476,-400.0,0.00019178,2]
[360781357,1747014633485,-400.0,0.00019178,2]
[360781359,1747014633495,-400.0,0.00019178,2]
[360781361,1747014633504,-400.0,0.00019178,2]
[360781363,1747014633513,-400.0,0.00019178,2]
[360781365,1747014633523,-400.0,0.00019178,2]
[360781367,1747014633532,-400.0,0.00019178,2]
[360781369,1747014633542,-400.0,0.00019178,2]
[360781371,1747014633551,-524.78818304,0.00019178,2]
[360781373,1747014633561,-400.0,0.00019178,2]
[360781375,1747014633571,-501.36484565,0.00019178,2]
[360781377,1747014633580,-400.0,0.00019178,2]
[360781379,1747014633590,-400.0,0.00019178,2]
[360781381,1747014633599,-400.0,0.00019178,2]
[360781383,1747014633608,-378.38667605,0.00019178,2]
[360781385,1747014633619,-400.0,0.00019178,2]
[360781387,1747014633628,-400.0,0.00019178,2]
[360781389,1747014633637,-400.0,0.00019178,2]
[360781390,1747014633646,-400.0,0.00019178,2]
[360781392,1747014633656,-400.0,0.00019178,2]
[360781394,1747014633666,-400.0,0.00019178,2]
[360781396,1747014633675,-400.0,0.00019178,2]
[360781398,1747014633685,-400.0,0.00019178,2]
[360781400,1747014633697,-400.0,0.00019178,2]
[360781402,1747014633707,-400.0,0.00019178,2]
[360781405,1747014633717,-400.0,0.00019178,2]
[360781406,1747014633726,-400.0,0.00019178,2]
[360781408,1747014633736,-400.0,0.00019178,2]
[360781410,1747014633746,-619.66465162,0.00019178,2]
[360781412,1747014633755,-510.87632215,0.00019178,2]
[360781414,1747014633764,-400.0,0.00019178,2]
[360781416,1747014633773,-400.0,0.00019178,2]
[360781418,1747014633783,-400.0,0.00019178,2]
[360781420,1747014633792,-400.0,0.00019178,2]
[360781422,1747014633801,-400.0,0.00019178,2]
[360781424,1747014633810,-400.0,0.00019178,2]
[360781426,1747014633820,-400.0,0.00019178,2]
[360781428,1747014633830,-400.0,0.00019178,2]
[360781430,1747014633839,-400.0,0.00019178,2]
[360781432,1747014633849,-400.0,0.00019178,2]
[360781434,1747014633858,-507.38973891,0.00019178,2]
[360781436,1747014633867,-511.59298316,0.00019178,2]
[360781438,1747014633877,-400.0,0.00019178,2]
[360781440,1747014633887,-400.0,0.00019178,2]
[360781442,1747014633896,-400.0,0.00019178,2]
[360781444,1747014633906,-400.0,0.00019178,2]
[360781446,1747014633916,-507.59741675,0.00019178,2]
[360781448,1747014633925,-400.0,0.00019178,2]
[360781450,1747014633935,-502.33213066,0.00019178,2]
[360781452,1747014633944,-508.52002369,0.00019178,2]
[360781454,1747014633953,-400.0,0.00019178,2]
[360781456,1747014633965,-400.0,0.00019178,2]
[360781459,1747014633979,-300.0,0.00019178,2]
[360781461,1747014633988,-400.0,0.00019178,2]
[360781463,1747014633998,-400.0,0.00019178,2]
[360781465,1747014634009,-400.0,0.00019178,2]
[360781467,1747014634018,-400.0,0.00019178,2]
[360781469,1747014634028,-400.0,0.00019178,2]
[360781471,1747014634038,-400.0,0.00019178,2]
[360781473,1747014634051,-400.0,0.00019178,2]
[360781475,1747014634062,-400.0,0.00019178,2]
[360781477,1747014634073,-400.0,0.00019178,2]
[360781479,1747014634083,-400.0,0.00019178,2]
[360781481,1747014634092,-400.0,0.00019178,2]
[360781483,1747014634102,-507.64731615,0.00019178,2]
[360781485,1747014634112,-400.0,0.00019178,2]
[360781487,1747014634122,-400.0,0.00019178,2]
[360781489,1747014634131,-400.0,0.00019178,2]
[360781491,1747014634141,-400.0,0.00019178,2]
[360781493,1747014634151,-515.38797851,0.00019178,2]
[360781495,1747014634161,-400.0,0.00019178,2]
[360781497,1747014634171,-400.0,0.00019178,2]
[360781499,1747014634181,-400.0,0.00019178,2]
[360781501,1747014634190,-400.0,0.00019178,2]
[360781503,1747014634200,-400.0,0.00019178,2]
[360781505,1747014634211,-502.11006527,0.00019178,2]
[360781507,1747014634221,-400.0,0.00019178,2]
[360781509,1747014634231,-400.0,0.00019178,2]
[360781511,1747014634241,-400.0,0.00019178,2]
[360781514,1747014634250,-400.0,0.00019178,2]
[360781516,1747014634260,-502.00420122,0.00019178,2]
[360781517,1747014634269,-400.0,0.00019178,2]
[360781520,1747014634279,-400.0,0.00019178,2]
[360781522,1747014634294,-400.0,0.00019178,2]
[360781524,1747014634306,-400.0,0.00019178,2]
[360781526,1747014634316,-400.0,0.00019178,2]
[360781528,1747014634326,-400.0,0.00019178,2]
[360781530,1747014634336,-400.0,0.00019178,2]
[360781532,1747014634347,-331.50677743,0.00019178,2]
[360781534,1747014634356,-400.0,0.00019178,2]
[360781536,1747014634366,-400.0,0.00019178,2]
[360781538,1747014634377,-290.16080414,0.00019178,2]
[360781540,1747014634387,-400.0,0.00019178,2]
[360781542,1747014634397,-400.0,0.00019178,2]
[360781544,1747014634406,-400.0,0.00019178,2]
[360781546,1747014634415,-400.0,0.00019178,2]
[360781548,1747014634426,-400.0,0.00019178,2]
[360781550,1747014634436,-400.0,0.00019178,2]
[360781552,1747014634445,-400.0,0.00019178,2]
[360781554,1747014634454,-252.44226511,0.00019178,2]
[360781556,1747014634464,-417.18586346,0.00019178,2]
[360781558,1747014634474,-400.0,0.00019178,2]
[360781560,1747014634484,-400.0,0.00019178,2]
[360781562,1747014634494,-400.0,0.00019178,2]
[360781564,1747014634503,-400.0,0.00019178,2]
[360781566,1747014634522,-400.0,0.00019178,2]
[360781568,1747014634542,-400.0,0.00019178,2]
[360781570,1747014634553,-400.0,0.00019178,2]
[360781572,1747014634564,-400.0,0.00019178,2]
[360781574,1747014634573,-400.0,0.00019178,2]
[360781576,1747014634583,-501.26225896,0.00019178,2]
[360781578,1747014634592,-400.0,0.00019178,2]
[360781580,1747014634601,-400.0,0.00019178,2]
[360781582,1747014634611,-333.00436122,0.00019178,2]
[360781599,1747014634758,-211.17750386,0.00019178,2]
[360781601,1747014634769,-400.0,0.00019178,2]
[360781603,1747014634778,-400.0,0.00019178,2]
[360781605,1747014634788,-400.0,0.00019178,2]
[360781607,1747014634797,-400.0,0.00019178,2]
[360781609,1747014634807,-209.55061924,0.00019178,2]
[360781610,1747014634816,-400.0,0.00019178,2]
[360781612,1747014634825,-400.0,0.00019178,2]
[360781614,1747014634834,-400.0,0.00019178,2]
[360781616,1747014634844,-503.80482825,0.00019178,2]
[360781618,1747014634853,-400.0,0.00019178,2]
[360781621,1747014634863,-500.0,0.00019178,2]
[360781623,1747014634873,-500.0,0.00019178,2]
[360781625,1747014634883,-400.0,0.00019178,2]
[360781627,1747014634892,-400.0,0.00019178,2]
[360781629,1747014634901,-400.0,0.00019178,2]
[360781631,1747014634910,-400.0,0.00019178,2]
[360781632,1747014634920,-400.0,0.00019178,2]
[360781635,1747014634931,-400.0,0.00019178,2]
[360781637,1747014634940,-1857.87,0.00019178,2]
[360781639,1747014634949,-400.0,0.00019178,2]
[360781641,1747014634959,-400.0,0.00019178,2]
[360781643,1747014634969,-400.0,0.00019178,2]